bitfinex/quotes_BTCUSD_20251009
["timestamp","ask_amount","ask_price","bid_price","bid_amount"]
[1760032322905,0.67861693,120790.0,120780.0,1e-08]
[1760032323131,0.67857693,120790.0,120780.0,1e-08]
[1760032323341,1.42591918,120790.0,120780.0,1e-08]
[1760032323548,1.66947918,120790.0,120780.0,1e-08]
[1760032324043,1.75555918,120790.0,120780.0,1e-08]
[1760032324262,0.88837089,120790.0,120780.0,1e-08]
[1760032324482,1.51299918,120790.0,120780.0,1e-08]
[1760032324648,1.75647918,120790.0,120780.0,1e-08]
[1760032324865,1.42691918,120790.0,120780.0,1e-08]
[1760032325111,1.67039918,120790.0,120780.0,1e-08]
[1760032325318,1.51299918,120790.0,120780.0,1e-08]
[1760032325493,1.88139916,120790.0,120780.0,1e-08]
[1760032325676,1.89687129,120790.0,120780.0,1e-08]
[1760032325849,0.16559032,120780.0,120770.0,1e-08]
[1760032326049,1.13465746,120780.0,120770.0,1e-08]
[1760032326470,0.89125746,120780.0,120770.0,1e-08]
[1760032326670,1.22069746,120780.0,120770.0,1e-08]
[1760032327515,1.11520539,120780.0,120770.0,1e-08]
[1760032327935,0.87384539,120780.0,120770.0,1e-08]
[1760032328134,1.11724539,120780.0,120770.0,1e-08]
[1760032328557,1.11712539,120780.0,120770.0,1e-08]
[1760032329013,0.87384539,120780.0,120770.0,1e-08]
[1760032329223,1.11708539,120780.0,120770.0,1e-08]
[1760032330085,1.14723729,120780.0,120770.0,1e-08]
[1760032330505,1.24399729,120780.0,120770.0,1e-08]
[1760032330714,1.60265085,120780.0,120770.0,1e-08]
[1760032330918,1.54206355,120780.0,120770.0,1e-08]
[1760032331121,1.97254355,120780.0,120770.0,1e-08]
[1760032332200,1.97246355,120780.0,120770.0,1e-08]
[1760032332740,1.88638355,120780.0,120770.0,1e-08]
[1760032332950,2.23359658,120780.0,120770.0,1e-08]
[1760032333159,2.23359658,120780.0,120730.0,1e-08]
[1760032333160,0.53579708,120740.0,120730.0,1e-08]
[1760032333360,1.5777794,120740.0,120730.0,1e-08]
[1760032333536,1.16115728,120740.0,120730.0,1e-08]
[1760032334192,1.50659728,120740.0,120730.0,1e-08]
[1760032335303,1.26359728,120740.0,120730.0,1e-08]
[1760032335513,1.32493537,120740.0,120730.0,1e-08]
[1760032335726,1.56789537,120740.0,120730.0,1e-08]
[1760032335926,1.58565583,120740.0,120730.0,1e-08]
[1760032336136,1.58563782,120740.0,120730.0,1e-08]
[1760032336547,1.34267782,120740.0,120730.0,1e-08]
[1760032336993,1.58551782,120740.0,120730.0,1e-08]
[1760032337411,1.49939782,120740.0,120730.0,1e-08]
[1760032337649,1.58551782,120740.0,120730.0,1e-08]
[1760032337989,1.49939782,120740.0,120730.0,1e-08]
[1760032338345,1.58551782,120740.0,120730.0,1e-08]
[1760032338946,0.91207782,120740.0,120730.0,1e-08]
[1760032339300,1.34271782,120740.0,120730.0,1e-08]
[1760032339513,0.35130333,120740.0,120730.0,1e-08]
[1760032339725,1.02603955,120740.0,120730.0,1e-08]
[1760032339928,0.38145523,120740.0,120730.0,1e-08]
[1760032340140,0.76418686,120740.0,120730.0,1e-08]
[1760032340371,1.10698685,120740.0,120730.0,1e-08]
[1760032340585,0.96638398,120740.0,120730.0,1e-08]
[1760032340809,1.20934398,120740.0,120730.0,1e-08]
[1760032341910,0.96638398,120740.0,120730.0,1e-08]
[1760032342259,1.28597796,120740.0,120730.0,1e-08]
[1760032342596,1.28601796,120740.0,120730.0,1e-08]
[1760032342805,0.95689796,120740.0,120730.0,1e-08]
[1760032343043,0.94158111,120740.0,120730.0,1e-08]
[1760032343271,0.81571571,120740.0,120730.0,1e-08]
[1760032343443,0.79356119,120740.0,120730.0,1e-08]
[1760032343670,1.03656119,120740.0,120730.0,1e-08]
[1760032344037,0.92814955,120740.0,120730.0,1e-08]
[1760032344248,1.06214276,120740.0,120730.0,1e-08]
[1760032344450,1.03199086,120740.0,120730.0,1e-08]
[1760032344775,1.06214276,120740.0,120730.0,1e-08]
[1760032345390,0.75802275,120740.0,120730.0,1e-08]
[1760032345598,1.18870275,120740.0,120730.0,1e-08]
[1760032345808,1.43166275,120740.0,120730.0,1e-08]
[1760032346227,1.18874275,120740.0,120730.0,1e-08]
[1760032346426,1.43174275,120740.0,120730.0,1e-08]
[1760032347147,0.75802275,120740.0,120730.0,1e-08]
[1760032347575,0.44899086,120740.0,120730.0,1e-08]
[1760032347776,0.67426955,120740.0,120730.0,1e-08]
[1760032347983,0.37530145,120740.0,120730.0,1e-08]
[1760032348199,0.46142145,120740.0,120730.0,1e-08]
[1760032348370,1.04434145,120740.0,120730.0,1e-08]
[1760032348584,0.80142145,120740.0,120730.0,1e-08]
[1760032348783,1.06207565,120740.0,120730.0,1e-08]
[1760032350140,0.81915565,120740.0,120730.0,1e-08]
[1760032350362,1.06195565,120740.0,120730.0,1e-08]
[1760032351842,1.08399017,120740.0,120730.0,1e-08]
[1760032352059,0.84131017,120740.0,120730.0,1e-08]
[1760032352250,1.08399017,120740.0,120730.0,1e-08]
[1760032352456,0.76290604,120740.0,120730.0,0.10000001]
[1760032352659,0.84131017,120740.0,120730.0,0.10000001]
[1760032352876,1.08391017,120740.0,120730.0,0.10000001]
[1760032353085,1.09162601,120740.0,120730.0,0.10000001]
[1760032353277,1.09163138,120740.0,120730.0,0.10000001]
[1760032353446,1.5236876,120740.0,120730.0,0.10000001]
[1760032353664,1.5236076,120740.0,120730.0,0.10000001]
[1760032354197,1.2810876,120740.0,120730.0,0.10000001]
[1760032354440,1.5236076,120740.0,120730.0,0.10000001]
[1760032355083,1.4373676,120740.0,120730.0,0.10000001]
[1760032355290,0.79268987,120740.0,120730.0,0.10000001]
[1760032355494,1.55326609,120740.0,120730.0,0.10000001]
[1760032356538,0.79268987,120740.0,120730.0,0.10000001]
[1760032356762,1.31086609,120740.0,120730.0,0.10000001]
[1760032356974,0.28588489,120740.0,120730.0,0.10000001]
[1760032357191,0.16664518,120740.0,120730.0,0.10000001]
[1760032357398,0.60822529,120740.0,120730.0,0.10000001]
[1760032357603,0.86827949,120740.0,120730.0,0.10000001]
[1760032357830,0.94827629,120740.0,120730.0,0.10000001]
[1760032358339,0.94819629,120740.0,120730.0,0.10000001]
[1760032358551,1.38025251,120740.0,120730.0,0.10000001]
[1760032359165,1.13801251,120740.0,120730.0,0.10000001]
[1760032359373,1.38795076,120740.0,120730.0,0.10000001]
[1760032360460,1.41010528,120740.0,120730.0,0.10000001]
[1760032360685,1.52337924,120740.0,120730.0,0.10000001]
[1760032360836,1.50122472,120740.0,120730.0,0.10000001]
[1760032362325,1.52337924,120740.0,120730.0,0.10000001]
[1760032362710,1.50122472,120740.0,120730.0,0.10000001]
[1760032362925,1.52337924,120740.0,120730.0,0.10000001]
[1760032363278,1.50122472,120740.0,120730.0,0.10000001]
[1760032365905,1.25902472,120740.0,120730.0,0.10000001]
[1760032366102,1.50086472,120740.0,120730.0,0.10000001]
[1760032366277,1.50088938,120740.0,120730.0,0.10000001]
[1760032367077,1.50072938,120740.0,120730.0,0.10000001]
[1760032367474,1.50068938,120740.0,120730.0,0.10000001]
[1760032367678,1.25131113,120740.0,120730.0,0.10000001]
[1760032367917,1.49291113,120740.0,120730.0,0.10000001]
[1760032369989,1.25131113,120740.0,120730.0,0.10000001]
[1760032370200,1.49291113,120740.0,120730.0,0.10000001]
[1760032372396,1.50066187,120740.0,120730.0,0.10000001]
[1760032372599,1.25131113,120740.0,120730.0,0.10000001]
[1760032373082,0.26824995,120740.0,120730.0,0.10000001]
[1760032373310,0.49412518,120740.0,120730.0,0.10000001]
[1760032373541,0.25276518,120740.0,120730.0,0.10000001]
[1760032373757,0.9261814,120740.0,120730.0,0.10000001]
[1760032374205,0.6848214,120740.0,120730.0,0.10000001]
[1760032374495,1.0061382,120740.0,120730.0,0.10000001]
[1760032374718,0.78031981,120740.0,120730.0,0.10000001]
[1760032374957,1.37945717,120740.0,120730.0,0.10000001]
[1760032375190,1.25145113,120740.0,120730.0,1e-08]
[1760032375416,1.49281113,120740.0,120730.0,1e-08]
[1760032375640,1.25145113,120740.0,120730.0,1e-08]
[1760032375881,1.49277113,120740.0,120730.0,1e-08]
[1760032376098,1.47491521,120740.0,120730.0,1e-08]
[1760032376524,1.38875521,120740.0,120730.0,1e-08]
[1760032376687,1.47487521,120740.0,120730.0,1e-08]
[1760032377570,1.14747521,120740.0,120730.0,1e-08]
[1760032377769,1.47483521,120740.0,120730.0,1e-08]
[1760032377967,1.38863521,120740.0,120730.0,1e-08]
[1760032378167,1.47475521,120740.0,120730.0,1e-08]
[1760032378369,1.45925216,120740.0,120730.0,1e-08]
[1760032378533,1.47471771,120740.0,120730.0,1e-08]
[1760032378737,1.45921216,120740.0,120730.0,1e-08]
[1760032380415,1.45917216,120740.0,120730.0,1e-08]
[1760032381351,1.45909216,120740.0,120730.0,1e-08]
[1760032381809,1.45901216,120740.0,120730.0,1e-08]
[1760032382026,1.13197216,120740.0,120730.0,1e-08]
[1760032382279,1.45901216,120740.0,120730.0,1e-08]
[1760032382506,1.21809216,120740.0,120730.0,1e-08]
[1760032382723,1.45897216,120740.0,120730.0,1e-08]
[1760032384928,1.45885216,120740.0,120730.0,1e-08]
[1760032385542,1.37261216,120740.0,120730.0,1e-08]
[1760032385751,1.45873216,120740.0,120730.0,1e-08]
[1760032386826,1.13197216,120740.0,120730.0,1e-08]
[1760032387664,0.16564518,120740.0,120730.0,0.06622001]
[1760032387668,0.17390233,120760.0,120740.0,0.16564518]
[1760032387941,0.25173775,120760.0,120750.0,0.115]
[1760032388183,0.49281775,120760.0,120750.0,0.115]
[1760032388460,0.16563146,120750.0,120740.0,0.13190206]
[1760032388611,0.16563146,120750.0,120740.0,0.19812206]
[1760032389669,0.40667146,120750.0,120740.0,0.19812206]
[1760032389887,0.40667146,120750.0,120740.0,0.001]
[1760032389888,0.16563146,120750.0,120740.0,0.001]
[1760032390100,0.40667146,120750.0,120740.0,0.002]
[1760032390314,0.46296181,120750.0,120740.0,0.002]
[1760032390699,0.40663146,120750.0,120740.0,0.002]
[1760032392304,0.40651146,120750.0,120740.0,0.002]
[1760032392512,0.70350743,120750.0,120740.0,0.002]
[1760032392718,1.36746949,120750.0,120740.0,1e-08]
[1760032392917,1.39778139,120750.0,120740.0,1e-08]
[1760032393117,1.23677819,120750.0,120740.0,1e-08]
[1760032393482,0.50564518,120740.0,120730.0,1e-08]
[1760032393687,1.12664321,120740.0,120730.0,1e-08]
[1760032394784,1.36756321,120740.0,120730.0,1e-08]
[1760032395027,1.45368321,120740.0,120730.0,1e-08]
[1760032395229,1.53368001,120740.0,120730.0,1e-08]
[1760032395823,1.29276001,120740.0,120730.0,1e-08]
[1760032396053,1.53360001,120740.0,120730.0,1e-08]
[1760032396803,1.20664001,120740.0,120730.0,1e-08]
[1760032397253,1.53356001,120740.0,120730.0,1e-08]
[1760032398017,1.20664001,120740.0,120730.0,1e-08]
[1760032398220,1.53352001,120740.0,120730.0,1e-08]
[1760032398432,1.53344001,120740.0,120730.0,1e-08]
[1760032399096,1.56355191,120740.0,120730.0,1e-08]
[1760032400229,0.70353487,120730.0,120720.0,1e-08]
[1760032400424,1.02424266,120730.0,120720.0,1e-08]
[1760032402771,1.11024266,120730.0,120720.0,1e-08]
[1760032403435,0.57236669,120730.0,120720.0,1e-08]
[1760032403639,1.11024266,120730.0,120720.0,0.10000001]
[1760032404145,0.16570008,120700.0,120690.0,0.11122463]
[1760032404350,0.40614008,120700.0,120690.0,0.19434669]
[1760032404561,0.16571381,120690.0,120680.0,0.07365425]
[1760032404764,0.40603381,120690.0,120680.0,0.19812206]
[1760032405217,0.16571381,120690.0,120680.0,0.19812206]
[1760032405428,0.40603381,120690.0,120680.0,0.28946206]
[1760032406076,0.16571381,120690.0,120680.0,0.19912206]
[1760032406298,0.16572754,120680.0,120660.0,0.04878]
[1760032406506,0.40618127,120670.0,120660.0,0.11550433]
[1760032406835,0.16574127,120670.0,120660.0,0.11550433]
[1760032407037,0.40618127,120670.0,120660.0,0.11550433]
[1760032407236,0.16574127,120670.0,120660.0,0.11550433]
[1760032407474,0.40614127,120670.0,120660.0,0.11550433]
[1760032407913,0.40610127,120670.0,120660.0,0.11950433]
[1760032408122,0.40610127,120670.0,120660.0,0.00450433]
[1760032408365,0.40610127,120670.0,120660.0,0.11950433]
[1760032409447,0.94397724,120670.0,120660.0,0.00450433]
[1760032410337,0.94397724,120670.0,120660.0,0.00250433]
[1760032410459,0.40610127,120670.0,120660.0,0.00350433]
[1760032410670,0.16574127,120670.0,120660.0,0.06772433]
[1760032410874,0.40598127,120670.0,120660.0,0.06872433]
[1760032411067,0.16574127,120670.0,120660.0,0.06872433]
[1760032411278,0.40594127,120670.0,120660.0,0.00250433]
[1760032411729,0.40594127,120670.0,120660.0,0.00150433]
[1760032412170,0.94381724,120670.0,120660.0,0.00050433]
[1760032412381,0.97382895,120670.0,120660.0,0.00050433]
[1760032412788,0.73362895,120670.0,120660.0,0.00050433]
[1760032412991,1.06002895,120670.0,120660.0,0.00050433]
[1760032413205,0.52219298,120670.0,120660.0,0.00050433]
[1760032413409,1.06006895,120670.0,120660.0,0.00050433]
[1760032413936,0.73362895,120670.0,120660.0,0.00050433]
[1760032414138,0.49214127,120670.0,120660.0,0.00050433]
[1760032414352,0.49214127,120670.0,120660.0,0.06267433]
[1760032414564,0.16574127,120670.0,120660.0,0.06267433]
[1760032414774,0.40606127,120670.0,120660.0,0.20273433]
[1760032415045,0.16574127,120670.0,120660.0,0.4547265]
[1760032415208,0.16574127,120670.0,120660.0,0.28897149]
[1760032415423,0.40606127,120670.0,120660.0,0.28897149]
[1760032415638,0.16574127,120670.0,120660.0,0.4547265]
[1760032415840,0.40602127,120670.0,120660.0,0.4547265]
[1760032418292,0.16574127,120670.0,120660.0,0.4547265]
[1760032418503,0.40586127,120670.0,120660.0,0.4547265]
[1760032418932,0.16572754,120680.0,120660.0,0.4547265]
[1760032419209,0.16572754,120680.0,120670.0,0.38892333]
[1760032419423,0.16572754,120680.0,120670.0,0.28535206]
[1760032419626,0.40580754,120680.0,120670.0,0.28535206]
[1760032420162,0.16572754,120680.0,120670.0,0.28535206]
[1760032420381,0.16572754,120680.0,120670.0,0.45109333]
[1760032420604,0.17398508,120700.0,120680.0,0.16572754]
[1760032420824,0.17398508,120700.0,120690.0,0.20223]
[1760032420825,0.26014508,120700.0,120690.0,0.20223]
[1760032421046,0.50022508,120700.0,120690.0,0.20223]
[1760032421493,0.50022508,120700.0,120690.0,0.11081]
[1760032421949,0.26014508,120700.0,120690.0,0.11081]
[1760032422170,0.50022508,120700.0,120690.0,0.11081]
[1760032422389,0.41406508,120700.0,120690.0,0.11081]
[1760032423235,0.17398508,120700.0,120690.0,0.11081]
[1760032423453,0.41402508,120700.0,120690.0,0.11081]
[1760032423658,0.17398508,120700.0,120690.0,0.11081]
[1760032423856,0.16571381,120690.0,120680.0,0.21729296]
[1760032424058,0.40567381,120690.0,120680.0,0.27946296]
[1760032424263,0.16571381,120690.0,120680.0,0.5366105]
[1760032424524,0.40563381,120690.0,120680.0,0.27946296]
[1760032424873,0.40563381,120690.0,120680.0,0.21880897]
[1760032425639,0.16571381,120690.0,120680.0,0.38453651]
[1760032425872,0.40563381,120690.0,120680.0,0.21880897]
[1760032426086,0.40563381,120690.0,120680.0,0.2821163]
[1760032427278,0.16571381,120690.0,120680.0,0.44784384]
[1760032427532,0.40547381,120690.0,120680.0,0.3729563]
[1760032428895,0.40547381,120690.0,120680.0,0.2821163]
[1760032429934,0.16571381,120690.0,120680.0,0.54076023]
[1760032430106,0.40543381,120690.0,120680.0,0.54076023]
[1760032433047,0.17398508,120700.0,120680.0,0.54076023]
[1760032433219,0.23944,120690.0,120680.0,0.53868384]
[1760032433433,0.40515381,120690.0,120680.0,0.53868384]
[1760032433756,0.40515381,120690.0,120680.0,0.37503269]
[1760032434198,0.40515381,120690.0,120680.0,0.54076023]
[1760032434633,0.40515381,120690.0,120680.0,0.37503269]
[1760032435050,0.40515381,120690.0,120680.0,0.28419269]
[1760032435452,0.16571381,120690.0,120680.0,0.54076023]
[1760032435663,0.40503381,120690.0,120680.0,0.54076023]
[1760032435870,0.17398508,120700.0,120680.0,0.54076023]
[1760032436070,0.17398508,120700.0,120680.0,0.44784384]
[1760032436071,0.40499381,120690.0,120680.0,0.44784384]
[1760032436696,0.40499381,120690.0,120680.0,0.53868384]
[1760032436926,0.26014297,120710.0,120690.0,0.16571381]
[1760032437145,0.40494008,120700.0,120690.0,0.29584587]
[1760032437295,0.17398297,120710.0,120690.0,0.35850587]
[1760032437517,0.40498008,120700.0,120690.0,0.35850587]
[1760032438170,0.40498008,120700.0,120690.0,0.44934587]
[1760032439136,0.40494008,120700.0,120690.0,0.44934587]
[1760032441266,0.16570008,120700.0,120690.0,0.28363206]
[1760032441584,0.94265605,120700.0,120690.0,0.00155716]
[1760032441792,0.94277605,120700.0,120690.0,0.00155716]
[1760032442563,0.70357605,120700.0,120690.0,0.00155716]
[1760032442764,1.02273285,120700.0,120690.0,0.00155716]
[1760032442974,0.78357285,120700.0,120690.0,0.00155716]
[1760032443450,1.02273285,120700.0,120690.0,0.00155716]
[1760032443660,1.02281285,120700.0,120690.0,0.00155716]
[1760032444311,0.70357605,120700.0,120690.0,0.00155716]
[1760032444521,0.25182008,120700.0,120690.0,0.10789716]
[1760032444728,0.49102008,120700.0,120690.0,0.20061716]
[1760032444936,0.16570008,120700.0,120690.0,0.20061716]
[1760032445151,0.16570008,120700.0,120690.0,0.36633097]
[1760032445443,0.40494008,120700.0,120690.0,0.36633097]
[1760032445671,0.40494008,120700.0,120690.0,0.28373922]
[1760032446090,0.40494008,120700.0,120690.0,0.44945303]
[1760032446276,0.40490008,120700.0,120690.0,0.44945303]
[1760032446691,0.40490008,120700.0,120690.0,0.28373922]
[1760032446898,0.40490008,120700.0,120690.0,0.44945303]
[1760032448183,0.40490008,120700.0,120690.0,0.44945303]
[1760032449247,0.16570008,120700.0,120690.0,0.44945303]
[1760032449490,0.16568635,120710.0,120700.0,0.16570008]
[1760032449710,0.16568635,120710.0,120700.0,0.38713214]
[1760032449922,0.40472635,120710.0,120700.0,0.44788214]
[1760032451369,0.17398003,120720.0,120700.0,0.44888214]
[1760032451578,0.17413099,120720.0,120710.0,0.13831]
[1760032451793,0.41309099,120720.0,120710.0,0.13831]
[1760032452021,0.17413099,120720.0,120710.0,0.19906]
[1760032452238,0.41309099,120720.0,120710.0,0.10634]
[1760032452643,0.16568635,120710.0,120700.0,0.12871206]
[1760032452981,0.16568635,120710.0,120700.0,0.12971206]
[1760032453157,0.16568635,120710.0,120700.0,0.44888214]
[1760032453668,0.16568635,120710.0,120700.0,0.44788214]
[1760032453890,0.40460635,120710.0,120700.0,0.44888214]
[1760032454741,0.16568635,120710.0,120700.0,0.28418206]
[1760032454961,0.40456635,120710.0,120700.0,0.45092016]
[1760032455170,0.16568635,120710.0,120700.0,0.45092016]
[1760032455392,0.40448635,120710.0,120700.0,0.45092016]
[1760032456553,0.16568635,120710.0,120700.0,0.71852016]
[1760032456766,0.40448635,120710.0,120700.0,0.71852016]
[1760032457773,0.47845805,120720.0,120700.0,0.71852016]
[1760032457984,0.23872,120710.0,120700.0,0.71748214]
[1760032458540,0.40432635,120710.0,120700.0,0.71748214]
[1760032459187,0.40432635,120710.0,120700.0,0.71648214]
[1760032459398,0.2386,120710.0,120700.0,0.71648214]
[1760032459621,0.40428635,120710.0,120700.0,0.71748214]
[1760032460046,0.2386,120710.0,120700.0,0.71648214]
[1760032460262,0.40428635,120710.0,120700.0,0.71748214]
[1760032461138,0.16568635,120710.0,120700.0,0.71748214]
[1760032461391,0.40428635,120710.0,120700.0,0.71748214]
[1760032461599,0.16568635,120710.0,120700.0,0.71748214]
[1760032461833,0.40416635,120710.0,120700.0,0.71748214]
[1760032462685,0.40412635,120710.0,120700.0,0.71748214]
[1760032462894,0.16568635,120710.0,120700.0,0.71748214]
[1760032463321,0.47845805,120720.0,120710.0,0.00051897]
[1760032463532,0.71685805,120720.0,120710.0,0.10685897]
[1760032463741,0.47845805,120720.0,120710.0,0.19957897]
[1760032463953,0.71685805,120720.0,120710.0,0.19957897]
[1760032464157,0.71685805,120720.0,120710.0,0.10685897]
[1760032464549,0.71681805,120720.0,120710.0,0.10685897]
[1760032464906,0.00015096,120720.0,120710.0,0.46495601]
[1760032465106,0.00015096,120720.0,120710.0,0.44838738]
[1760032465306,0.00015096,120720.0,120710.0,0.77358738]
[1760032465727,0.00015096,120720.0,120710.0,0.44838738]
[1760032465931,0.00015096,120720.0,120710.0,0.68746738]
[1760032466376,0.00015096,120720.0,120710.0,0.44938738]
[1760032466722,0.00015096,120720.0,120710.0,0.68850738]
[1760032466928,0.00015096,120720.0,120710.0,0.4767307]
[1760032467138,0.47015065,120720.0,120710.0,0.68850738]
[1760032467344,0.47015065,120720.0,120710.0,0.68950738]
[1760032467524,0.47015065,120720.0,120710.0,0.45038738]
[1760032467751,0.47015065,120720.0,120710.0,0.68946738]
[1760032467960,0.16582359,120720.0,120710.0,0.68946738]
[1760032468182,0.00015096,120720.0,120710.0,0.68946738]
[1760032468395,0.16582359,120720.0,120710.0,0.68946738]
[1760032468601,0.16582359,120720.0,120710.0,0.45038738]
[1760032468812,0.16582359,120720.0,120710.0,0.68942738]
[1760032469025,0.16582359,120720.0,120710.0,0.35766738]
[1760032469690,0.16582359,120720.0,120710.0,0.59666738]
[1760032470152,0.16582359,120720.0,120710.0,0.45038738]
[1760032470401,0.16582359,120720.0,120710.0,0.68938738]
[1760032470859,0.47015065,120720.0,120710.0,0.19198103]
[1760032471073,0.50451297,120720.0,120710.0,0.10885897]
[1760032471284,0.47015065,120720.0,120710.0,0.10885897]
[1760032471510,0.70907065,120720.0,120710.0,0.10885897]
[1760032472803,0.00015096,120720.0,120710.0,0.35766738]
[1760032473022,0.00015096,120720.0,120710.0,0.45105738]
[1760032473242,0.00015096,120720.0,120710.0,0.68993738]
[1760032475238,0.00015096,120720.0,120710.0,0.69021738]
[1760032475430,0.00015096,120720.0,120710.0,0.45105738]
[1760032475656,0.00015096,120720.0,120710.0,0.69017738]
[1760032476940,0.00015096,120720.0,120710.0,0.45105738]
[1760032477258,0.00015096,120720.0,120710.0,0.69017738]
[1760032478313,0.00015096,120720.0,120710.0,0.69009738]
[1760032479566,0.00015096,120720.0,120710.0,0.45105738]
[1760032479770,0.00015096,120720.0,120710.0,0.69001738]
[1760032481597,0.00015096,120720.0,120710.0,0.45105738]
[1760032481832,0.00015096,120720.0,120710.0,0.68997738]
[1760032482648,0.00015096,120720.0,120710.0,0.45105738]
[1760032482828,0.00015096,120720.0,120710.0,0.69005738]
[1760032483644,0.00015096,120720.0,120710.0,0.45105738]
[1760032483862,0.00015096,120720.0,120710.0,0.69005738]
[1760032484913,0.16582359,120720.0,120710.0,0.45105738]
[1760032485120,0.00015096,120720.0,120710.0,0.69001738]
[1760032485327,0.00015096,120720.0,120710.0,0.68993738]
[1760032486874,0.00015096,120720.0,120710.0,0.45105738]
[1760032487076,0.00015096,120720.0,120710.0,0.68985738]
[1760032487303,0.00015096,120720.0,120710.0,0.45105738]
[1760032487544,0.00015096,120720.0,120710.0,0.68981738]
[1760032489476,0.00015096,120720.0,120710.0,0.45105738]
[1760032489705,0.00015096,120720.0,120710.0,0.68981738]
[1760032490136,0.00015096,120720.0,120710.0,0.45105738]
[1760032490524,0.00015096,120720.0,120710.0,0.68969738]
[1760032490999,0.16582359,120720.0,120710.0,0.68965738]
[1760032491428,0.00015096,120720.0,120710.0,0.68965738]
[1760032493633,0.00015096,120720.0,120710.0,0.68953738]
[1760032495553,0.00015096,120720.0,120710.0,0.68945738]
[1760032495766,0.00015096,120720.0,120710.0,0.45105738]
[1760032495982,0.00015096,120720.0,120710.0,0.68945738]
[1760032496954,0.00015096,120720.0,120710.0,0.45105738]
[1760032497156,0.16582359,120720.0,120710.0,0.68937738]
[1760032497847,0.16582359,120720.0,120710.0,0.68933738]
[1760032498455,0.16582359,120720.0,120710.0,0.28537103]
[1760032498594,0.47015065,120720.0,120710.0,0.19198103]
[1760032499603,0.16582359,120720.0,120710.0,0.19198103]
[1760032500063,0.47015065,120720.0,120710.0,0.19198103]
[1760032500562,0.70835065,120720.0,120710.0,0.00251897]
[1760032500766,1.01267771,120720.0,120710.0,0.00251897]
[1760032500891,0.77447771,120720.0,120710.0,0.00251897]
[1760032501147,0.77447771,120720.0,120710.0,0.28610103]
[1760032501148,0.16582359,120720.0,120710.0,0.28610103]
[1760032501579,0.16582359,120720.0,120710.0,0.45178738]
[1760032502014,0.16582359,120720.0,120710.0,0.45078738]
[1760032502212,0.16582359,120720.0,120710.0,0.28510103]
[1760032502891,0.16582359,120720.0,120710.0,0.19367103]
[1760032503050,0.47015065,120720.0,120710.0,0.19367103]
[1760032503253,0.47015065,120720.0,120710.0,0.08364103]
[1760032503978,0.70827065,120720.0,120710.0,0.08364103]
[1760032504383,0.70827065,120720.0,120710.0,0.14716103]
[1760032504785,0.40394359,120720.0,120710.0,0.14716103]
[1760032504963,0.70827065,120720.0,120710.0,0.14716103]
[1760032505169,0.40394359,120720.0,120710.0,0.14716103]
[1760032505400,0.70827065,120720.0,120710.0,0.14716103]
[1760032505600,0.70831065,120720.0,120710.0,0.19134103]
[1760032505823,0.70831065,120720.0,120710.0,0.28502103]
[1760032506493,0.40398359,120720.0,120710.0,0.28502103]
[1760032506904,0.40398359,120720.0,120710.0,0.19134103]
[1760032507887,0.16582359,120720.0,120710.0,0.19134103]
[1760032508098,0.40398359,120720.0,120710.0,0.28502103]
[1760032509330,0.70831065,120720.0,120710.0,0.28502103]
[1760032509535,0.40398359,120720.0,120710.0,0.28502103]
[1760032510345,0.40398359,120720.0,120710.0,0.19134103]
[1760032510960,0.40398359,120720.0,120710.0,0.45070738]
[1760032511404,0.40398359,120720.0,120710.0,0.19134103]
[1760032511814,0.40398359,120720.0,120710.0,0.45070738]
[1760032511815,0.00015096,120720.0,120710.0,0.45070738]
[1760032512024,0.00015096,120720.0,120710.0,0.68886738]
[1760032512235,0.00015096,120720.0,120710.0,0.71373556]
[1760032512909,0.00015096,120720.0,120710.0,0.47557556]
[1760032513131,0.00015096,120720.0,120710.0,0.71373556]
[1760032513356,0.00015096,120720.0,120710.0,0.47557556]
[1760032513639,0.00015096,120720.0,120710.0,0.71373556]
[1760032518849,0.00015096,120720.0,120710.0,0.47557556]
[1760032519546,0.00015096,120720.0,120710.0,0.71369556]
[1760032521829,0.00015096,120720.0,120710.0,0.47557556]
[1760032522052,0.00015096,120720.0,120710.0,0.71369556]
[1760032522262,0.00015096,120720.0,120710.0,0.47557556]
[1760032522470,0.00015096,120720.0,120710.0,0.71369556]
[1760032522672,0.00015096,120720.0,120710.0,0.47557556]
[1760032522889,0.00015096,120720.0,120710.0,0.71369556]
[1760032523486,0.00015096,120720.0,120710.0,0.47557556]
[1760032523724,0.00015096,120720.0,120710.0,0.71369556]
[1760032524112,0.00015096,120720.0,120710.0,0.47557556]
[1760032524315,0.00015096,120720.0,120710.0,0.79981556]
[1760032525824,0.00015096,120720.0,120710.0,0.71365556]
[1760032526695,0.00015096,120720.0,120710.0,0.47557556]
[1760032526902,0.00015096,120720.0,120710.0,0.71365556]
[1760032527538,0.00015096,120720.0,120710.0,0.47557556]
[1760032528008,0.00015096,120720.0,120710.0,0.81557556]
[1760032528746,0.00015096,120720.0,120710.0,1.05365556]
[1760032529121,0.00015096,120720.0,120710.0,0.81557556]
[1760032529335,0.00015096,120720.0,120710.0,1.14177556]
[1760032529924,0.00015096,120720.0,120710.0,0.93384746]
[1760032530120,0.00015096,120720.0,120710.0,1.16992746]
[1760032530325,0.00015096,120720.0,120710.0,1.17192746]
[1760032530530,0.00015096,120720.0,120710.0,1.17292746]
[1760032530757,0.00015096,120720.0,120710.0,1.17092746]
[1760032531043,0.00015096,120720.0,120710.0,1.17192746]
[1760032533585,0.1454361,120760.0,120750.0,0.16563146]
[1760032533943,0.16576893,120760.0,120750.0,0.45029352]
[1760032534112,0.16680632,120760.0,120750.0,0.45029352]
[1760032534251,0.57134282,120770.0,120750.0,0.47515597]
[1760032534455,0.16561775,120760.0,120750.0,0.47515597]
[1760032535286,0.1738844,120770.0,120750.0,0.47515597]
[1760032535483,0.36557662,120790.0,120770.0,0.16560404]
[1760032535750,0.36557662,120790.0,120780.0,0.36713032]
[1760032537044,0.36557662,120790.0,120780.0,0.10917]
[1760032537661,0.2,120790.0,120780.0,0.46681141]
[1760032537871,0.2,120790.0,120780.0,0.68829238]
[1760032538078,0.2,120790.0,120780.0,0.71314754]
[1760032538293,0.15526675,120790.0,120780.0,0.71314754]
[1760032541117,0.15526675,120790.0,120780.0,0.71310754]
[1760032541563,0.15682233,120790.0,120780.0,0.71310754]
[1760032541773,0.15682233,120790.0,120780.0,1.07656503]
[1760032542185,0.15682233,120790.0,120780.0,0.83856503]
[1760032542426,0.15682233,120790.0,120780.0,1.07656503]
[1760032544483,0.15682233,120790.0,120780.0,0.83856503]
[1760032544726,0.15682233,120790.0,120780.0,1.07652503]
[1760032545514,0.15682233,120790.0,120780.0,0.83856503]
[1760032545700,0.15682233,120790.0,120780.0,1.07652503]
[1760032547849,0.15682233,120790.0,120780.0,0.67297471]
[1760032548079,0.15682233,120790.0,120780.0,0.47510754]
[1760032548080,0.32239895,120790.0,120780.0,0.47510754]
[1760032548280,0.32239895,120790.0,120780.0,0.30951722]